bitfinex-derivatives/quotes_SOLF0:USTF0_20240815
["timestamp","ask_amount","ask_price","bid_price","bid_amount"]
[1723695562612,3.4694,144.11,144.09,0.04815733]
[1723695563098,3.4695,144.1,144.09,0.04815733]
[1723695563299,0.04990766,144.12,144.09,0.04815733]
[1723695564011,3.4694,144.11,144.09,0.04815733]
[1723695565412,3.4695,144.1,144.09,0.04815733]
[1723695565805,0.04990766,144.12,144.09,0.04815733]
[1723695566200,3.4694,144.11,144.09,0.04815733]
[1723695567909,0.04990766,144.12,144.1,10.67]
[1723695568304,0.04990766,144.12,144.11,3.4692]
[1723695569113,0.04990766,144.12,144.1,10.67]
[1723695569114,0.04990766,144.12,144.1,3.4694]
[1723695569306,0.04990766,144.12,144.1,14.1394]
[1723695570213,0.04990766,144.12,144.11,3.4692]
[1723695573115,10.67,144.18,144.1,11.9112]
[1723695573116,3.4679,144.17,144.14,3.4684]
[1723695573412,4.18,144.19,144.14,14.1384]
[1723695573618,3.468,144.17,144.14,14.1384]
[1723695573916,4.18,144.19,144.14,10.67]
[1723695574417,3.468,144.17,144.15,0.05091354]
[1723695574915,0.05256616,144.18,144.15,0.05091354]
[1723695574916,3.52026616,144.18,144.15,0.05091354]
[1723695575117,0.05256616,144.18,144.15,0.05091354]
[1723695575309,0.05256616,144.18,144.16,10.67]
[1723695575509,0.05256616,144.18,144.15,0.05091354]
[1723695576323,3.4678,144.17,144.15,0.05091354]
[1723695576716,0.05256616,144.18,144.15,0.05091354]
[1723695577726,3.52026616,144.18,144.15,0.05091354]
[1723695578319,3.52026616,144.18,144.15,3.51921354]
[1723695580718,3.468,144.16,144.15,0.05091354]
[1723695580925,0.05256616,144.18,144.15,0.05091354]
[1723695581425,3.52016616,144.18,144.15,0.05091354]
[1723695581620,0.05256616,144.18,144.15,0.05091354]
[1723695582823,3.52026616,144.18,144.15,3.51911354]
[1723695583323,10.67,144.17,144.15,0.05091354]
[1723695583919,3.468,144.16,144.15,0.05091354]
[1723695584527,14.138,144.16,144.15,0.05091354]
[1723695586129,10.67,144.12,144.07,2.6195]
[1723695586320,4.18,144.13,144.07,13.2895]
[1723695586925,4.18,144.13,144.09,3.4696]
[1723695587125,0.05159735,144.11,144.09,3.52103298]
[1723695587327,3.52089735,144.11,144.09,0.05143298]
[1723695588725,3.52089735,144.11,144.09,3.52113298]
[1723695588726,0.05159735,144.11,144.09,3.52113298]
[1723695589729,0.05159735,144.11,144.1,3.4695]
[1723695592425,0.05159735,144.11,144.09,3.52103298]
[1723695595627,0.05159735,144.11,144.1,3.4695]
[1723695597325,0.05159735,144.11,144.09,3.52103298]
[1723695597525,0.05159735,144.11,144.09,0.05143298]
[1723695597928,3.4695,144.1,144.09,0.05143298]
[1723695599333,0.05159735,144.11,144.09,0.05143298]
[1723695599826,3.52109735,144.11,144.09,0.05143298]
[1723695600027,0.05159735,144.11,144.09,0.05143298]
[1723695600832,3.4695,144.1,144.09,0.05143298]
[1723695603629,3.52099735,144.11,144.09,0.05143298]
[1723695604535,3.52099735,144.11,144.09,10.72143298]
[1723695604536,0.05159735,144.11,144.09,10.72143298]
[1723695604923,0.05159735,144.11,144.1,3.4695]
[1723695608732,3.4681,144.16,144.13,3.4686]
[1723695608932,17.61,144.21,144.13,10.67]
[1723695609234,1.2872,144.23,144.15,10.67]
[1723695609235,4.16,144.19,144.15,10.67]
[1723695609534,3.4671,144.2,144.15,10.67]
[1723695609730,4.16,144.22,144.17,10.67]
[1723695610137,3.5168327,144.19,144.17,10.67]
[1723695610328,0.0493327,144.19,144.18,10.67]
[1723695610840,3.4665,144.23,144.18,10.67]
[1723695611036,3.4665,144.23,144.21,10.67]
[1723695611429,7.6262,144.24,144.21,10.67]
[1723695612037,7.67119733,144.24,144.21,10.71514424]
[1723695613144,7.67119733,144.24,144.21,14.18194424]
[1723695614231,0.04499733,144.24,144.21,10.71514424]
[1723695614438,0.04499733,144.24,144.22,10.67]
[1723695614636,0.04499733,144.24,144.22,14.1365]
[1723695615435,0.04499733,144.24,144.22,10.67]
[1723695615436,3.51109733,144.24,144.22,10.67]
[1723695615632,0.04499733,144.24,144.21,14.18184424]
[1723695616133,0.04499733,144.24,144.22,3.4665]
[1723695616936,3.51109733,144.24,144.21,14.18184424]
[1723695617137,0.04499733,144.24,144.21,10.71514424]
[1723695618444,0.04499733,144.24,144.22,3.4666]
[1723695619238,0.04499733,144.24,144.21,0.04514424]
[1723695619747,14.1366,144.22,144.21,0.04514424]
[1723695620042,18.25948339,144.22,144.13,2.5912]
[1723695620243,3.4679,144.17,144.14,3.4684]
[1723695620443,10.67,144.19,144.13,13.2612]
[1723695620838,3.468,144.17,144.14,3.4685]
[1723695621043,0.04393461,144.17,144.14,0.04919164]
[1723695621439,3.4682,144.16,144.14,0.04919164]
[1723695622039,3.4683,144.15,144.14,0.04919164]
[1723695624249,10.71393461,144.17,144.14,0.04919164]
[1723695625845,10.67,144.16,144.09,1.2687]
[1723695626046,10.67,144.14,144.09,1.2687]
[1723695626347,3.4694,144.11,144.09,1.2687]
[1723695627040,3.51910431,144.11,144.09,0.04718343]
[1723695628644,3.4695,144.1,144.09,0.04718343]
[1723695631348,3.51910431,144.11,144.09,0.04718343]
[1723695631849,0.04970431,144.11,144.09,0.04718343]
[1723695632042,3.51890431,144.11,144.09,0.04718343]
[1723695637247,7.65890431,144.11,144.09,0.04718343]
[1723695638548,0.04970431,144.11,144.09,10.71718343]
[1723695639146,0.04970431,144.11,144.1,4.7614]
[1723695640149,234.2148,144.21,144.1,1.2919]
[1723695640351,4.14,144.19,144.15,10.67]
[1723695640847,4.14,144.19,144.12,42.68]
[1723695640848,4.14,144.19,144.17,10.67]
[1723695641155,7.6074,144.19,144.17,10.67]
[1723695641352,4.18485454,144.19,144.17,10.71754561]
[1723695641748,0.04485454,144.19,144.17,10.71754561]
[1723695643154,0.04485454,144.19,144.17,0.04754561]
[1723695645047,0.04485454,144.19,144.17,10.71754561]
[1723695645651,0.04485454,144.19,144.18,3.4676]
[1723695648156,0.04485454,144.19,144.17,3.51514561]
[1723695649255,3.51225454,144.19,144.17,0.04754561]
[1723695650652,3.4676,144.18,144.17,0.04754561]
[1723695652660,3.4676,144.18,144.1,1.2919]
[1723695652661,26.63,144.18,144.1,1.2919]
[1723695652855,26.63,144.17,144.07,27.8482]
[1723695653059,4.16,144.16,144.1,3.4695]
[1723695653862,0.04777027,144.14,144.12,0.05057164]
[1723695654459,3.4688,144.13,144.12,0.05057164]
[1723695655162,3.51647027,144.14,144.12,0.05057164]
[1723695657266,3.4688,144.13,144.12,0.05057164]
[1723695666764,0.04777027,144.14,144.12,0.05057164]
[1723695667864,0.04777027,144.14,144.12,3.51947164]
[1723695669175,0.04777027,144.14,144.12,0.05057164]
[1723695669669,3.4688,144.13,144.12,0.05057164]
[1723695674481,7.67637027,144.14,144.12,0.05057164]
[1723695681883,4.20777027,144.14,144.12,3.51957164]
[1723695682385,0.04777027,144.14,144.12,3.51957164]
[1723695682584,0.04777027,144.14,144.13,14.1288]
[1723695682988,0.04777027,144.14,144.13,15.4633]
[1723695684684,3.53090101,144.22,144.13,15.4633]
[1723695684685,8.2551,144.26,144.13,11.9945]
[1723695684876,22.11877634,144.25,144.18,10.66]
[1723695685080,21.74,144.25,144.18,10.66]
[1723695685777,3.4671,144.2,144.18,10.66]
[1723695685981,3.4671,144.2,144.17,30.0977]
[1723695686181,4.14,144.25,144.18,0.04965248]
[1723695686486,0.04578634,144.2,144.18,3.51715248]
[1723695686792,0.04919801,144.2,144.18,3.51715248]
[1723695687589,0.04919801,144.2,144.19,3.4673]
[1723695688290,0.04919801,144.2,144.18,3.51715248]
[1723695688487,0.04919801,144.2,144.18,0.04965248]
[1723695689587,0.04919801,144.2,144.18,3.51715248]
[1723695690289,0.04919801,144.2,144.19,3.4673]
[1723695691294,0.04919801,144.2,144.18,3.51705248]
[1723695691489,0.04919801,144.2,144.18,0.04965248]
[1723695692805,0.04919801,144.2,144.18,3.51725248]
[1723695693002,0.04919801,144.2,144.18,0.04965248]
[1723695693204,0.04919801,144.2,144.19,3.4673]
[1723695693796,0.04919801,144.2,144.19,30.0973]
[1723695694000,0.04919801,144.2,144.19,31.3943]
[1723695699811,4.14,144.25,144.19,27.927]
[1723695700010,6.94,144.29,144.21,26.63]
[1723695700313,4.14,144.29,144.21,26.63]
[1723695700513,3.4659,144.26,144.22,3.4665]
[1723695700710,4.14,144.29,144.22,3.4665]
[1723695700911,0.049981,144.25,144.23,0.05134484]
[1723695701706,3.515881,144.25,144.23,0.05134484]
[1723695703014,0.049981,144.25,144.23,0.05134484]
[1723695703419,3.4661,144.24,144.23,0.05134484]
[1723695703914,3.4672,144.2,144.17,3.4677]
[1723695705217,0.04930762,144.2,144.18,3.4675]
[1723695705813,3.51640762,144.2,144.18,3.4675]
[1723695708325,3.51640762,144.2,144.17,14.16387843]
[1723695710224,0.04930762,144.2,144.18,3.4674]
[1723695710534,0.04930762,144.2,144.19,10.65]
[1723695711124,0.04930762,144.2,144.19,14.1173]
[1723695711327,4.14,144.25,144.19,10.65]
[1723695711624,4.14,144.25,144.22,10.65]
[1723695711819,7.6061,144.25,144.22,14.1166]
[1723695712322,7.65919507,144.25,144.22,14.16968966]
[1723695712513,0.05309507,144.25,144.23,3.4663]
[1723695712719,0.05309507,144.25,144.22,10.70308966]
[1723695713612,0.05309507,144.25,144.23,10.65]
[1723695713817,4.14,144.32,144.24,3.4764207]
[1723695714019,4.14,144.32,144.27,10.65]
[1723695714218,3.4648,144.3,144.27,10.65]
[1723695714718,3.4648,144.3,144.27,14.1154]
[1723695714919,3.4645,144.31,144.27,14.1154]
[1723695715226,0.05334241,144.3,144.27,10.69505329]
[1723695716621,0.05334241,144.3,144.28,3.4651]
[1723695718320,0.05334241,144.3,144.29,10.65]
[1723695720828,0.05334241,144.3,144.27,10.69505329]
[1723695721020,0.05334241,144.3,144.27,0.04505329]
[1723695721429,3.4651,144.29,144.27,0.04505329]
[1723695723625,0.05334241,144.3,144.27,0.04505329]
[1723695723626,3.4652,144.28,144.27,0.04505329]
[1723695725830,3.4651,144.29,144.27,0.04505329]
[1723695727138,3.4652,144.28,144.27,0.04505329]
[1723695728530,3.465,144.29,144.27,0.04505329]
[1723695728930,3.465,144.29,144.27,14.16045329]
[1723695730633,3.51814241,144.3,144.27,14.16045329]
[1723695731841,0.05334241,144.3,144.28,10.65]
[1723695732529,0.05334241,144.3,144.28,14.115]
[1723695733336,0.05334241,144.3,144.29,3.4649]
[1723695735237,226.0,144.39,144.28,11.9025]
[1723695735546,4.14,144.38,144.33,10.65]
[1723695736142,3.4636,144.35,144.33,10.65]
[1723695736538,0.05084551,144.35,144.33,0.05209979]
[1723695736737,3.4637,144.34,144.33,0.05209979]
[1723695737046,0.05084551,144.35,144.33,0.05209979]
[1723695737540,3.51444551,144.35,144.33,0.05209979]
[1723695739645,3.4637,144.34,144.33,0.05209979]
[1723695740947,7.6037,144.34,144.33,0.05209979]
[1723695741147,3.4647,144.3,144.27,3.4653]
[1723695741346,10.65,144.33,144.27,10.65]
[1723695741848,3.4648,144.3,144.27,10.65]
[1723695742238,3.51141199,144.3,144.27,10.65]
[1723695742439,3.51141199,144.3,144.27,10.70278502]
[1723695742644,3.51141199,144.3,144.27,14.16818502]
[1723695744339,3.465,144.29,144.27,10.70278502]
[1723695748245,3.4652,144.28,144.27,0.05278502]
[1723695749045,0.04661199,144.3,144.29,3.4649]
[1723695749250,0.04661199,144.3,144.29,14.1149]
[1723695749842,0.04661199,144.3,144.29,10.65]
[1723695752958,0.04661199,144.3,144.28,10.65]
[1723695755757,3.51141199,144.3,144.28,10.65]
[1723695756660,3.4649,144.29,144.28,10.65]
[1723695757052,3.51141199,144.3,144.28,10.65]
[1723695757653,0.04661199,144.3,144.27,10.70278502]
[1723695757954,3.4651,144.29,144.27,10.70278502]
[1723695758858,3.4652,144.28,144.27,0.05278502]
[1723695760352,3.4652,144.28,144.27,10.70278502]
[1723695764358,3.4651,144.29,144.27,10.70278502]
[1723695764564,4.18661199,144.3,144.28,10.65]
[1723695764865,0.04661199,144.3,144.29,10.65]
[1723695765863,3.51131199,144.3,144.29,10.65]
[1723695767373,3.465,144.29,144.27,0.05278502]
[1723695767669,3.465,144.29,144.27,10.70278502]
[1723695768054,3.4652,144.28,144.27,0.05278502]
[1723695769866,3.4652,144.28,144.27,10.70278502]
[1723695770168,3.465,144.29,144.27,10.70278502]
[1723695771660,3.4652,144.28,144.27,10.70278502]
[1723695772061,3.465,144.29,144.27,10.70278502]
[1723695772568,3.4652,144.28,144.27,10.70278502]
[1723695774874,3.465,144.29,144.27,10.70278502]
[1723695777870,3.4652,144.28,144.27,10.70278502]
[1723695779565,3.4652,144.28,144.27,0.05278502]
[1723695787673,3.465,144.29,144.27,0.05278502]
[1723695788274,3.4652,144.28,144.27,0.05278502]
[1723695788465,4.18661199,144.3,144.27,10.70278502]
[1723695788868,7.65141199,144.3,144.27,14.16808502]
[1723695790671,3.4651,144.29,144.27,0.05278502]
[1723695793377,3.4652,144.28,144.27,0.05278502]
[1723695795978,3.465,144.29,144.27,0.05278502]
[1723695802587,0.04661199,144.3,144.27,0.05278502]
[1723695804388,3.4652,144.28,144.27,0.05278502]
[1723695804583,10.65,144.28,144.1,225.0]
[1723695804784,10.65,144.26,144.18,10.65]
[1723695804978,3.4671,144.2,144.18,10.65]
[1723695805481,3.467,144.21,144.18,10.65]
[1723695805679,0.04518783,144.2,144.18,10.69523151]
[1723695806289,0.04518783,144.2,144.18,14.16263151]
[1723695807486,0.04518783,144.2,144.18,10.69523151]
[1723695808287,3.51228783,144.2,144.18,10.69523151]
[1723695809183,3.4673,144.19,144.18,0.04523151]
[1723695809891,3.51228783,144.2,144.18,10.69523151]
[1723695811889,0.04518783,144.2,144.18,10.69523151]
[1723695812492,0.04518783,144.2,144.18,14.16263151]
[1723695812691,0.04518783,144.2,144.19,10.65]
[1723695813094,0.04518783,144.2,144.19,14.1173]
[1723695814797,4.14,144.25,144.21,3.4668]
[1723695814994,4.14,144.25,144.22,10.65]
[1723695815394,3.4661,144.24,144.22,10.65]
[1723695815891,3.51277367,144.24,144.22,10.6997424]
[1723695816094,0.04667367,144.24,144.22,14.1663424]
[1723695816490,0.04667367,144.24,144.22,10.6997424]
[1723695816996,0.04667367,144.24,144.22,0.0497424]
[1723695816997,3.4664,144.23,144.22,0.0497424]
[1723695820094,0.04667367,144.24,144.17,10.65]
[1723695820404,10.65,144.23,144.17,10.65]
[1723695820696,17.59,144.23,144.16,3.4679]
[1723695820896,17.59,144.23,144.16,14.1179]
[1723695821294,0.04947074,144.21,144.18,0.04968319]
[1723695821494,3.4675,144.19,144.18,0.04968319]
[1723695822695,3.4672,144.2,144.18,0.04968319]
[1723695826005,3.4673,144.19,144.18,0.04968319]
[1723695829990,3.4672,144.2,144.18,0.04968319]
[1723695830192,4.18947074,144.21,144.18,0.04968319]
[1723695831805,3.4673,144.19,144.18,0.04968319]
[1723695832102,4.18947074,144.21,144.18,0.04968319]
[1723695832400,3.4672,144.2,144.18,0.04968319]
[1723695832697,0.04947074,144.21,144.19,10.65]
[1723695833806,0.04947074,144.21,144.19,14.1172]
[1723695834307,0.04947074,144.21,144.19,10.65]
[1723695835205,0.04947074,144.21,144.19,14.1171]
[1723695835406,0.04947074,144.21,144.19,10.65]
[1723695836504,0.04947074,144.21,144.2,3.4671]
[1723695836710,1.4776,144.3,144.23,10.65]
[1723695836711,4.14,144.3,144.23,10.65]
[1723695836899,4.14,144.3,144.24,10.65]
[1723695837099,3.4653,144.28,144.26,10.65]
[1723695837495,4.14,144.3,144.26,10.65]
[1723695837701,0.05261286,144.28,144.26,14.16356407]
[1723695837909,14.79,144.33,144.26,14.16356407]
[1723695838105,10.65,144.27,144.26,0.04806407]
[1723695838502,4.18640333,144.28,144.26,0.04806407]
[1723695838805,10.65,144.27,144.19,3.4672]
[1723695839003,10.65,144.25,144.18,10.65]
[1723695839203,10.65,144.23,144.15,2.6016]
[1723695839405,10.65,144.23,144.16,10.65]
[1723695839601,10.65,144.23,144.17,3.4678]
[1723695840106,0.04428617,144.21,144.19,0.0523608]
[1723695840307,3.4671,144.2,144.19,0.0523608]
[1723695865624,14.1171,144.2,144.19,0.0523608]
[1723695865827,10.65,144.2,144.11,10.65]
[1723695866022,10.65,144.18,144.11,10.65]
[1723695866221,3.4682,144.16,144.13,3.4686]
[1723695866422,10.65,144.18,144.13,3.4686]
[1723695866818,3.51405205,144.17,144.14,3.51564812]
[1723695868327,3.51405205,144.17,144.14,0.04714812]
[1723695868629,3.4681,144.16,144.14,0.04714812]
[1723695869228,3.51405205,144.17,144.14,0.04714812]
[1723695870330,3.4681,144.16,144.14,0.04714812]
[1723695871526,3.4683,144.15,144.14,0.04714812]
[1723695873936,0.04615205,144.17,144.14,0.04714812]
[1723695874323,3.51405205,144.17,144.14,3.51564812]
[1723695878635,3.51405205,144.17,144.14,4.80924812]
[1723695878835,0.04615205,144.17,144.15,3.4683]
[1723695879227,0.04615205,144.17,144.14,1.34074812]
[1723695879433,3.51395205,144.17,144.14,4.80914812]
[1723695881535,3.4681,144.16,144.14,1.34074812]
[1723695881933,0.04615205,144.17,144.14,1.34074812]
[1723695882440,0.04615205,144.17,144.15,3.4682]
[1723695886041,3.51395205,144.17,144.15,3.4682]
[1723695886237,3.51395205,144.17,144.14,7.40514812]
[1723695887440,3.4681,144.16,144.14,7.40514812]
[1723695888139,3.4681,144.16,144.14,3.93674812]
[1723695891051,0.04615205,144.17,144.14,7.40524812]
[1723695891437,3.51415205,144.17,144.14,7.40524812]
[1723695894349,0.04615205,144.17,144.15,10.65]
[1723695894745,0.04615205,144.17,144.16,3.468]
[1723695895943,7.6068,144.22,144.15,10.65]
[1723695896248,4.14,144.24,144.17,10.65]
[1723695896444,4.14,144.24,144.15,4.14]
[1723695896445,3.4665,144.23,144.2,3.4669]
[1723695896748,14.79,144.27,144.2,10.65]
[1723695897145,3.4663,144.24,144.22,0.04733035]
[1723695897445,0.05175553,144.25,144.22,0.04733035]
[1723695898842,3.51775553,144.25,144.22,3.51393035]
[1723695899145,0.05175553,144.25,144.22,0.04733035]
[1723695900249,0.05175553,144.25,144.23,3.4664]
[1723695902348,0.05175553,144.25,144.22,10.69733035]
[1723695902752,0.05175553,144.25,144.22,0.04733035]
[1723695902955,3.51765553,144.25,144.22,3.51373035]
[1723695904952,0.05175553,144.25,144.23,3.4663]
[1723695905350,0.05175553,144.25,144.22,0.04733035]
[1723695905553,3.51785553,144.25,144.22,3.51383035]
[1723695906352,0.05175553,144.25,144.22,0.04733035]
[1723695906545,10.65,144.24,144.22,0.04733035]
[1723695906857,3.4664,144.23,144.22,0.04733035]
[1723695907056,4.19175553,144.25,144.22,0.04733035]
[1723695907646,3.4663,144.24,144.22,0.04733035]
[1723695907958,4.19175553,144.25,144.22,0.04733035]
[1723695908849,3.4663,144.24,144.22,0.04733035]
[1723695910853,3.4663,144.24,144.22,3.51393035]
[1723695916454,0.05175553,144.25,144.22,3.51393035]
[1723695916455,3.51775553,144.25,144.22,3.51383035]
[1723695918054,3.51775553,144.25,144.22,0.04733035]
[1723695918252,0.05175553,144.25,144.24,10.65]
[1723695919156,0.05175553,144.25,144.24,14.1161]
[1723695920755,0.05175553,144.25,144.22,10.69733035]
[1723695920952,0.05175553,144.25,144.22,0.04733035]
[1723695921757,3.51775553,144.25,144.22,3.51383035]
[1723695924457,3.4662,144.24,144.22,0.04733035]
[1723695925158,3.4662,144.24,144.22,3.51393035]
[1723695927058,3.4662,144.24,144.22,0.04733035]
[1723695927257,3.4664,144.23,144.22,0.04733035]
[1723695929460,3.4662,144.24,144.22,0.04733035]
[1723695930055,3.51765553,144.25,144.22,0.04733035]
[1723695930450,0.05175553,144.25,144.22,0.04733035]
[1723695930658,3.4663,144.24,144.22,0.04733035]
[1723695930855,0.05175553,144.25,144.22,0.04733035]
[1723695931060,3.4664,144.23,144.22,0.04733035]
[1723695936762,3.4663,144.24,144.22,0.04733035]
[1723695936963,3.4663,144.24,144.22,10.69733035]
[1723695937758,3.4663,144.24,144.22,14.16393035]
[1723695938166,3.4663,144.24,144.22,10.69733035]
[1723695941362,3.4663,144.24,144.22,14.16393035]
[1723695944979,0.05175553,144.25,144.22,0.04733035]
[1723695944980,3.4664,144.23,144.22,0.04733035]
[1723695946380,3.4678,144.18,144.14,14.79]
[1723695946580,10.65,144.21,144.14,14.79]
[1723695946876,10.65,144.21,144.15,4.8119]
[1723695947578,0.05144949,144.19,144.17,0.04398965]
[1723695948071,3.4676,144.18,144.17,0.04398965]
[1723695950681,3.51894949,144.19,144.17,0.04398965]
[1723695950879,0.05144949,144.19,144.17,0.04398965]
[1723695951175,3.51884949,144.19,144.17,0.04398965]
[1723695951375,0.05144949,144.19,144.17,0.04398965]
[1723695951577,0.05144949,144.19,144.18,10.65]
[1723695951876,0.05144949,144.19,144.18,14.1176]
[1723695952676,4.14,144.24,144.18,10.65]
[1723695952882,4.14,144.24,144.21,10.65]
[1723695953070,3.4663,144.24,144.21,10.65]
[1723695953684,3.51788807,144.24,144.21,10.69734229]
[1723695955484,3.51788807,144.24,144.21,0.04734229]
[1723695955787,3.4664,144.23,144.21,0.04734229]
[1723695957890,3.51778807,144.24,144.21,10.69734229]
[1723695958484,3.51778807,144.24,144.22,3.4666]
[1723695959198,0.05158807,144.24,144.23,10.65]
[1723695961391,3.51768807,144.24,144.21,14.16404229]
[1723695961596,3.51768807,144.24,144.21,10.69734229]
[1723695962095,0.05158807,144.24,144.22,3.4666]
[1723695963192,3.51778807,144.24,144.21,14.16414229]
[1723695964188,3.4664,144.23,144.21,3.51414229]
[1723695965495,3.4664,144.23,144.21,0.04734229]
[1723695965701,3.4666,144.22,144.21,0.04734229]
[1723695966295,3.4665,144.23,144.21,0.04734229]
[1723695967501,3.4666,144.22,144.21,0.04734229]
[1723695975800,14.1166,144.22,144.21,0.04734229]
[1723695976311,14.1166,144.22,144.16,11.9275]
[1723695976312,10.65,144.22,144.14,4.12]
[1723695976507,10.65,144.19,144.12,10.65]
[1723695976702,10.65,144.19,144.11,6.699]
[1723695977004,10.65,144.19,144.12,27.69021619]
[1723695977202,10.65,144.19,144.12,10.65]
[1723695977513,3.468,144.17,144.13,3.4687]
[1723695977708,3.51981156,144.17,144.14,0.04835618]
[1723695978911,3.4681,144.16,144.14,0.04835618]
[1723695979907,0.05181156,144.17,144.14,0.04835618]
[1723695981417,3.4682,144.16,144.14,0.04835618]
[1723695982108,3.51971156,144.17,144.14,10.69835618]
[1723695982412,0.05181156,144.17,144.14,10.69835618]
[1723695982713,0.05181156,144.17,144.14,14.16675618]
[1723695982914,3.51961156,144.17,144.14,14.16675618]
[1723695983109,0.05181156,144.17,144.14,14.16675618]
[1723695985812,3.51971156,144.17,144.14,14.16675618]
[1723695986210,0.05181156,144.17,144.14,10.69835618]
[1723695986515,0.05181156,144.17,144.14,0.04835618]
[1723695987612,3.4682,144.16,144.14,0.04835618]
[1723695988605,0.05181156,144.17,144.14,0.04835618]
[1723695989011,0.05181156,144.17,144.14,14.16685618]
[1723695989316,3.51981156,144.17,144.14,14.16685618]
[1723695989915,3.51981156,144.17,144.14,3.51685618]
[1723695992319,3.4681,144.16,144.14,0.04835618]
[1723695994523,3.51971156,144.17,144.14,3.51685618]
[1723695994717,3.51971156,144.17,144.14,14.16685618]
[1723695997019,0.05181156,144.17,144.14,10.69835618]
[1723695997319,0.05181156,144.17,144.15,10.65]
[1723695998621,0.05181156,144.17,144.15,14.1182]
[1723695999229,0.05181156,144.17,144.16,3.468]
[1723696012436,0.05181156,144.17,144.14,0.04835618]
[1723696013237,3.4682,144.16,144.14,0.04835618]
[1723696015738,3.4683,144.15,144.14,0.04835618]
[1723696020440,3.4682,144.16,144.14,0.04835618]
[1723696021034,0.05181156,144.17,144.14,0.04835618]
[1723696021747,3.4683,144.15,144.14,0.04835618]
[1723696023937,10.65,144.15,144.08,10.65]
[1723696024134,14.77,144.15,144.08,10.65]
[1723696024443,3.4692,144.12,144.08,14.1199]
[1723696024839,3.4692,144.12,144.08,10.65]
[1723696025230,14.77,144.15,144.09,0.04650823]
[1723696025231,3.52199372,144.11,144.09,0.04650823]
[1723696026137,0.05269372,144.11,144.09,10.69650823]
[1723696026339,0.05269372,144.11,144.1,3.4695]
[1723696051377,0.05269372,144.11,144.09,10.69650823]
[1723696051977,0.05269372,144.11,144.1,3.4695]
[1723696052677,0.05269372,144.11,144.09,14.16610823]
[1723696053282,0.05269372,144.11,144.1,3.4695]
[1723696054776,0.05269372,144.11,144.1,14.1195]
[1723696055175,11.9319,144.19,144.1,10.65]
[1723696055374,16.0519,144.19,144.13,10.65]
[1723696056280,3.468,144.16,144.15,0.04977517]
[1723696056488,3.468,144.16,144.12,10.65]
[1723696056771,3.468,144.16,144.14,0.04810532]
[1723696066478,3.51590087,144.17,144.14,0.04810532]
[1723696066677,0.04800087,144.17,144.14,0.04810532]
[1723696067585,3.4681,144.16,144.14,0.04810532]
[1723696077387,0.04800087,144.17,144.14,10.69810532]
[1723696077594,0.04800087,144.17,144.15,10.65]
[1723696079290,0.04800087,144.17,144.15,14.1182]
[1723696083797,3.51590087,144.17,144.14,3.51660532]
[1723696083991,3.51590087,144.17,144.14,14.16660532]
[1723696085194,3.4681,144.16,144.14,10.69810532]
[1723696095407,3.4683,144.15,144.14,0.04810532]
[1723696109013,3.4681,144.16,144.14,0.04810532]
[1723696109607,0.04800087,144.17,144.15,3.4683]
[1723696109814,0.04800087,144.17,144.15,14.1183]
[1723696110214,3.51580087,144.17,144.15,10.65]
[1723696112613,0.04800087,144.17,144.15,14.1181]
[1723696113208,16.79811907,144.21,144.16,10.65]
[1723696113209,12.6796216,144.21,144.16,10.65]
[1723696113410,14.94799505,144.26,144.2,10.65]
[1723696113607,10.65,144.27,144.2,10.65]
[1723696113805,14.18432732,144.27,144.2,10.65]
[1723696114013,10.65,144.26,144.17,1.297]
[1723696114218,11.8689,144.26,144.18,27.68638612]
[1723696114416,0.05250361,144.23,144.2,0.0519266]
[1723696115217,3.4668,144.21,144.2,0.0519266]
[1723696119319,0.05250361,144.23,144.2,0.0519266]
[1723696119723,3.4668,144.22,144.2,0.0519266]
[1723696120230,0.05250361,144.23,144.2,0.0519266]
[1723696121326,3.4668,144.21,144.2,0.0519266]
[1723696121621,0.05250361,144.23,144.2,0.0519266]
[1723696121916,3.4668,144.21,144.2,0.0519266]
[1723696124318,0.05250361,144.23,144.2,10.7019266]
[1723696124923,3.51900361,144.23,144.2,14.1689266]
[1723696126919,3.4668,144.22,144.2,10.7019266]